fUSD/lending_fUSD_20240109
["ID","MTS","AMOUNT","RATE_DAILY","PERIOD"]
[310913432,1704814362341,-1685.22,0.00041753,30]
[310913433,1704814362352,-1223.53,0.00041753,30]
[310913434,1704814362362,-191.70700324,0.00041753,30]
[310913435,1704814362371,-500.0,0.00041753,30]
[310913436,1704814362383,-500.0,0.00041753,30]
[310913437,1704814362393,-500.0,0.00041753,30]
[310913438,1704814362402,-404.79370724,0.00041753,30]
[310913439,1704814362413,-1149.96,0.00041753,30]
[310913440,1704814362422,-6253.79,0.00041753,30]
[310913441,1704814362434,-500.0,0.00041753,30]
[310913442,1704814362444,-989.82,0.00041753,30]
[310913443,1704814362454,-500.0,0.00041753,30]
[310913444,1704814362464,-2365.66,0.00041753,30]
[310913445,1704814362474,-1963.83,0.00041753,30]
[310913446,1704814362484,-701.0,0.00041753,30]
[310913447,1704814362494,-705.46,0.00041753,30]
[310913448,1704814362505,-7334.72,0.00041753,30]
[310913449,1704814362515,-500.0,0.00041753,30]
[310913450,1704814362525,-2159.55,0.00041753,30]
[310913451,1704814362535,-7759.7,0.00041753,30]
[310913452,1704814362545,-7619.16,0.00041753,30]
[310913453,1704814362554,-1725.58,0.00041753,30]
[310913454,1704814362565,-1264.61,0.00041753,30]
[310913455,1704814362575,-2266.7,0.00041753,30]
[310913456,1704814362585,-500.0,0.00041753,30]
[310913457,1704814362595,-914.32,0.00041753,30]
[310913458,1704814362607,-500.0,0.00041753,30]
[310913459,1704814362618,-689.51,0.00041753,30]
[310913460,1704814362627,-500.0,0.00041753,30]
[310913461,1704814362637,-6777.19,0.00041753,30]
[310913462,1704814362646,-1573.82,0.00041753,30]
[310913463,1704814362656,-500.0,0.00041753,30]
[310913464,1704814362666,-4036.91,0.00041753,30]
[310913465,1704814362675,-3417.76,0.00041753,30]
[310913466,1704814362685,-2670.87,0.00041753,30]
[310913467,1704814362695,-649.74,0.00041753,30]
[310913468,1704814362704,-1768.69,0.00041753,30]
[310913469,1704814362714,-2656.66,0.00041753,30]
[310913470,1704814362724,-500.0,0.00041753,30]
[310913471,1704814362733,-3624.89,0.00041753,30]
[310913472,1704814362743,-500.0,0.00041753,30]
[310913473,1704814362753,-891.81,0.00041753,30]
[310913474,1704814362764,-1969.21,0.00041753,30]
[310913475,1704814362776,-4760.81,0.00041753,30]
[310913476,1704814362786,-1849.48,0.00041753,30]
[310913477,1704814362796,-2591.36,0.00041753,30]
[310913478,1704814362807,-1829.62,0.00041753,30]
[310913479,1704814362821,-507.02,0.00041753,30]
[310913480,1704814362830,-1545.72,0.00041753,30]
[310913481,1704814362841,-820.1,0.00041753,30]
[310913482,1704814362851,-1282.15,0.00041753,30]
[310913483,1704814362863,-3330.89,0.00041753,30]
[310913484,1704814362872,-7125.45,0.00041753,30]
[310913485,1704814362882,-1041.48,0.00041753,30]
[310913486,1704814362891,-500.0,0.00041753,30]
[310913487,1704814362902,-500.0,0.00041753,30]
[310913488,1704814362913,-4552.78,0.00041753,30]
[310913489,1704814362923,-25135.11,0.00041753,30]
[310913490,1704814362933,-3134.7,0.00041753,30]
[310913491,1704814362943,-18448.99,0.00041753,30]
[310913492,1704814362953,-2000.28,0.00041753,30]
[310913493,1704814362962,-500.0,0.00041753,30]
[310913494,1704814362972,-500.0,0.00041753,30]
[310913495,1704814362982,-500.0,0.00041753,30]
[310913496,1704814362992,-745.36,0.00041753,30]
[310913497,1704814363001,-1655.6,0.00041753,30]
[310913498,1704814363011,-13835.28,0.00041753,30]
[310913499,1704814363021,-1353.98,0.00041753,30]
[310913500,1704814363031,-19704.83,0.00041753,30]
[310913501,1704814363041,-2446.36,0.00041753,30]
[310913502,1704814363050,-3526.58,0.00041753,30]
[310913503,1704814363062,-11755.41,0.00041753,30]
[310913504,1704814363072,-2085.11,0.00041753,30]
[310913505,1704814363083,-975.77,0.00041753,30]
[310913506,1704814363093,-500.0,0.00041753,7]
[310913507,1704814363103,-5456.33,0.00041753,30]
[310913508,1704814363115,-703.77,0.00041753,30]
[310913509,1704814363126,-578.03,0.00041753,30]
[310913510,1704814363137,-18929.09,0.00041753,30]
[310913511,1704814363147,-91700.44,0.00041753,30]
[310913512,1704814363158,-500.0,0.00041753,30]
[310913513,1704814363168,-186.98958874,0.00041753,30]
[310913514,1704814363179,-610.44,0.00041753,30]
[310913515,1704814363190,-11389.4,0.00041753,30]
[310913516,1704814363199,-685.04,0.00041753,30]
[310913517,1704814363210,-4955.76,0.00041753,30]
[310913518,1704814363219,-5644.78,0.00041753,30]
[310913519,1704814363229,-1643.59,0.00041753,30]
[310913520,1704814363239,-1534.89,0.00041753,30]
[310913521,1704814363249,-1919.34,0.00041753,30]
[310913522,1704814363259,-500.0,0.00041753,30]
[310913523,1704814363269,-1207.82,0.00041753,30]
[310913524,1704814363279,-3051.16,0.00041753,30]
[310913525,1704814363289,-2205.97,0.00041753,30]
[310913526,1704814363299,-500.0,0.00041753,30]
[310913527,1704814363309,-500.0,0.00041753,30]
[310913528,1704814363319,-4326.12,0.00041753,30]
[310913529,1704814363330,-23372.75,0.00041753,30]
[310913530,1704814363340,-4650.3,0.00041753,30]
[310913531,1704814363350,-3602.98,0.00041753,30]
[310913532,1704814363361,-553.67444724,0.00041753,30]
[310913533,1704814363371,-500.0,0.00041753,30]
[310913534,1704814363381,-1706.69,0.00041753,30]
[310913535,1704814363391,-948.23,0.00041753,30]
[310913536,1704814363402,-1484.9,0.00041753,30]
[310913537,1704814363412,-625.91,0.00041753,30]
[310913538,1704814363421,-4750.61,0.00041753,30]
[310913539,1704814363432,-677.56,0.00041753,30]
[310913540,1704814363441,-753.01,0.00041753,30]
[310913541,1704814363451,-570.53,0.00041753,30]
[310913542,1704814363461,-1014.72,0.00041753,30]
[310913543,1704814363471,-1075.83,0.00041753,30]
[310913544,1704814363481,-10401.23,0.00041753,30]
[310913545,1704814363492,-500.0,0.00041753,30]
[310913546,1704814363502,-1988.56,0.00041753,30]
[310913547,1704814363511,-2247.55,0.00041753,30]
[310913548,1704814363522,-1760.09,0.00041753,30]
[310913549,1704814363532,-1917.59,0.00041753,30]
[310913550,1704814363542,-8509.95,0.00041753,30]
[310913551,1704814363552,-6630.63,0.00041753,30]
[310913552,1704814363562,-912.61,0.00041753,30]
[310913553,1704814363572,-6677.97,0.00041753,30]
[310913554,1704814363582,-500.0,0.00041753,30]
[310913555,1704814363592,-7738.46,0.00041753,30]
[310913556,1704814363603,-500.0,0.00041753,30]
[310913557,1704814363613,-500.0,0.00041753,30]
[310913558,1704814363623,-14437.73,0.00041753,30]
[310913559,1704814363633,-839.67,0.00041753,30]
[310913560,1704814363644,-1402.57,0.00041753,30]
[310913561,1704814363654,-814.2,0.00041753,30]
[310913562,1704814363664,-2196.22,0.00041753,30]
[310913563,1704814363674,-500.0,0.00041753,30]
[310913564,1704814363684,-36009.51,0.00041753,30]
[310913565,1704814363694,-2863.88,0.00041753,30]
[310913566,1704814363704,-12556.6,0.00041753,30]
[310913567,1704814363713,-3304.26,0.00041753,30]
[310913568,1704814363723,-2592.03,0.00041753,30]
[310913569,1704814363734,-2705.09,0.00041753,30]
[310913570,1704814363744,-500.0,0.00041753,30]
[310913571,1704814363754,-500.0,0.00041753,30]
[310913572,1704814363764,-500.0,0.00041753,30]
[310913573,1704814363774,-2400.96,0.00041753,30]
[310913574,1704814363784,-4406.91,0.00041753,30]
[310913575,1704814363794,-1297.88,0.00041753,30]
[310913576,1704814363804,-6577.65,0.00041753,30]
[310913577,1704814363815,-571.22,0.00041753,30]
[310913578,1704814363828,-500.0,0.00041753,30]
[310913579,1704814363838,-3403.92,0.00041753,30]
[310913580,1704814363847,-2751.1,0.00041753,30]
[310913581,1704814363858,-3033.25,0.00041753,30]
[310913582,1704814363868,-952.63,0.00041753,30]
[310913583,1704814363877,-1721.02,0.00041753,30]
[310913584,1704814363887,-7028.61,0.00041753,30]
[310913585,1704814363897,-836.3,0.00041753,7]
[310913586,1704814363907,-500.0,0.00041753,30]
[310913587,1704814363917,-5593.4,0.00041753,30]
[310913588,1704814363927,-2579.3,0.00041753,30]
[310913589,1704814363938,-831.97,0.00041753,30]
[310913590,1704814363948,-30439.38,0.00041753,30]
[310913591,1704814363958,-500.0,0.00041753,30]
[310913592,1704814363968,-3381.6,0.00041753,30]
[310913593,1704814363978,-2158.92,0.00041753,30]
[310913594,1704814363988,-3472.05,0.00041753,30]
[310913595,1704814363998,-3977.49,0.00041753,30]
[310913596,1704814364008,-3410.32,0.00041753,30]
[310913597,1704814364018,-559.01315775,0.00041753,30]
[310913598,1704814364027,-3128.49,0.00041753,30]
[310913599,1704814364037,-10635.21,0.00041753,30]
[310913600,1704814364048,-663.76,0.00041753,30]
[310913601,1704814364058,-24039.48,0.00041753,30]
[310913602,1704814364068,-500.0,0.00041753,30]
[310913603,1704814364078,-3985.89,0.00041753,30]
[310913604,1704814364088,-2042.98,0.00041753,30]
[310913605,1704814364097,-963.6,0.00041753,30]
[310913606,1704814364108,-666.14,0.00041753,30]
[310913607,1704814364118,-556.97,0.00041753,30]
[310913608,1704814364129,-8775.01,0.00041753,30]
[310913609,1704814364139,-500.0,0.00041753,30]
[310913610,1704814364150,-2400.49,0.00041753,30]
[310913611,1704814364160,-1309.81,0.00041753,30]
[310913612,1704814364171,-4562.41,0.00041753,30]
[310913613,1704814364181,-12849.89,0.00041753,30]
[310913614,1704814364191,-2978.02,0.00041753,30]
[310913615,1704814364202,-4825.39,0.00041753,30]
[310913616,1704814364213,-500.0,0.00041753,30]
[310913617,1704814364223,-566.11,0.00041753,30]
[310913618,1704814364233,-1467.66,0.00041753,30]
[310913619,1704814364244,-2107.23,0.00041753,30]
[310913620,1704814364254,-500.0,0.00041753,30]
[310913621,1704814364265,-1188.47,0.00041753,30]
[310913622,1704814364276,-11369.64,0.00041753,30]
[310913623,1704814364286,-2592.28,0.00041753,30]
[310913624,1704814364297,-566.95,0.00041753,30]
[310913625,1704814364308,-520.31,0.00041753,30]
[310913626,1704814364319,-500.0,0.00041753,30]
[310913627,1704814364331,-13217.82,0.00041753,30]
[310913628,1704814364342,-866.47,0.00041753,30]
[310913629,1704814364353,-3181.95,0.00041753,30]
[310913630,1704814364367,-1308.82,0.00041753,30]
[310913631,1704814364378,-1243.26,0.00041753,30]
[310913632,1704814364389,-3734.08,0.00041753,30]
[310913633,1704814364400,-500.0,0.00041753,30]
[310913634,1704814364411,-1766.64,0.00041753,30]
[310913635,1704814364422,-3615.8,0.00041753,30]
[310913636,1704814364432,-500.0,0.00041753,30]
[310913637,1704814364442,-500.0,0.00041753,30]
[310913638,1704814364452,-799.0,0.00041753,30]
[310913639,1704814364463,-647.36427686,0.00041753,30]
[310913640,1704814364473,-53505.47,0.00041753,30]
[310913641,1704814364483,-500.0,0.00041753,30]
[310913642,1704814364493,-1413.08,0.00041753,30]
[310913643,1704814364504,-11287.22,0.00041753,30]
[310913644,1704814364514,-1155.76,0.00041753,30]
[310913645,1704814364524,-3747.83,0.00041753,30]
[310913646,1704814364534,-1079.77,0.00041753,30]
[310913647,1704814364544,-1909.74,0.00041753,30]
[310913648,1704814364555,-3376.04,0.00041753,30]
[310913649,1704814364832,-526.70812607,0.00041753,30]
[310913650,1704814364842,-500.0,0.00041753,30]
[310913651,1704814364852,-1333.09,0.00041753,30]
[310913652,1704814364862,-500.0,0.00041753,30]
[310913653,1704814364871,-9749.45,0.00041753,30]
[310913654,1704814364880,-539.77,0.00041753,30]
[310913655,1704814364890,-2218.8,0.00041753,30]
[310913656,1704814364900,-1480.74,0.00041753,30]
[310913657,1704814364909,-7804.99,0.00041753,30]
[310913658,1704814364920,-1670.61,0.00041753,30]
[310913659,1704814364930,-1352.73,0.00041753,30]
[310913660,1704814364939,-4741.82,0.00041753,30]
[310913661,1704814364949,-1839.15,0.00041753,30]
[310913662,1704814364959,-866.78,0.00041753,30]
[310913663,1704814364968,-744.76,0.00041753,30]
[310913664,1704814364978,-1274.54,0.00041753,30]
[310913665,1704814364988,-1070.69,0.00041753,30]
[310913666,1704814364997,-2037.9,0.00041753,30]
[310913667,1704814365007,-500.0,0.00041753,30]
[310913668,1704814365016,-6743.41,0.00041753,30]
[310913669,1704814365027,-1978.49,0.00041753,30]
[310913670,1704814365036,-6850.2,0.00041753,30]
[310913671,1704814365046,-621.39,0.00041753,30]
[310913672,1704814365056,-500.0,0.00041753,30]
[310913673,1704814365065,-3055.23,0.00041753,30]
[310913674,1704814365075,-2655.54,0.00041753,30]
[310913675,1704814365085,-764.5,0.00041753,30]
[310913676,1704814365094,-8868.04,0.00041753,30]
[310913677,1704814365104,-770.69,0.00041753,30]
[310913678,1704814365115,-4116.15,0.00041753,30]
[310913679,1704814365124,-6036.32,0.00041753,30]
[310913680,1704814365134,-5775.13,0.00041753,30]
[310913681,1704814365145,-3806.3,0.00041753,30]
[310913682,1704814365154,-1289.28,0.00041753,30]
[310913683,1704814365164,-500.0,0.00041753,30]
[310913684,1704814365174,-6309.52,0.00041753,30]
[310913685,1704814365183,-845.03,0.00041753,30]
[310913686,1704814365193,-1090.32,0.00041753,30]
[310913687,1704814365203,-5575.14,0.00041753,30]
[310913688,1704814365213,-3727.78,0.00041753,30]
[310913689,1704814365222,-901.26,0.00041753,30]
[310913690,1704814365232,-529.51,0.00041753,30]
[310913691,1704814365242,-10643.6,0.00041753,30]
[310913692,1704814365252,-500.0,0.00041753,30]
[310913693,1704814365262,-4214.2,0.00041753,30]
[310913694,1704814365271,-500.0,0.00041753,30]
[310913695,1704814365281,-3567.97,0.00041753,30]
[310913696,1704814365291,-500.0,0.00041753,30]
[310913697,1704814365301,-2289.51,0.00041753,30]
[310913698,1704814365311,-4952.19,0.00041753,30]
[310913699,1704814365321,-4092.41,0.00041753,30]
[310913700,1704814365331,-546.11,0.00041753,30]
[310913701,1704814365342,-1000.5,0.00041753,30]
[310913702,1704814365351,-25536.63,0.00041753,30]
[310913703,1704814365363,-2584.46,0.00041753,30]
[310913704,1704814365372,-500.0,0.00041753,30]
[310913705,1704814365382,-6469.48,0.00041753,30]
[310913706,1704814365391,-1883.51,0.00041753,30]
[310913707,1704814365401,-14086.33,0.00041753,30]
[310913708,1704814365411,-17610.03,0.00041753,30]
[310913709,1704814365421,-2218.2,0.00041753,30]
[310913710,1704814365431,-1520.43,0.00041753,30]
[310913711,1704814365441,-2301.6,0.00041753,30]
[310913712,1704814365453,-3584.84,0.00041753,30]
[310913713,1704814365462,-12370.47,0.00041753,30]
[310913714,1704814365472,-82269.16,0.00041753,30]
[310913715,1704814365483,-587.12,0.00041753,30]
[310913716,1704814365493,-500.0,0.00041753,30]
[310913717,1704814365503,-2651.08,0.00041753,30]
[310913718,1704814365514,-811.16,0.00041753,30]
[310913719,1704814365526,-500.0,0.00041753,30]
[310913720,1704814365537,-8660.7,0.00041753,30]
[310913721,1704814365547,-601.75192538,0.00041753,30]
[310913722,1704814365557,-500.0,0.00041753,30]
[310913723,1704814365566,-7898.64,0.00041753,30]
[310913724,1704814365578,-1178.68,0.00041753,30]
[310913725,1704814365613,-6405.08,0.00041753,30]
[310913726,1704814365622,-6245.69,0.00041753,30]
[310913727,1704814365632,-3770.14,0.00041753,30]
[310913728,1704814365642,-500.0,0.00041753,30]
[310913729,1704814365651,-2108.08,0.00041753,30]
[310913730,1704814365661,-1033.39,0.00041753,30]
[310913731,1704814365671,-1235.98,0.00041753,30]
[310913732,1704814365681,-4003.81,0.00041753,30]
[310913733,1704814365690,-3248.4,0.00041753,30]
[310913734,1704814365700,-500.0,0.00041753,30]
[310913735,1704814365710,-500.0,0.00041753,30]
[310913736,1704814365721,-923.06,0.00041753,30]
[310913737,1704814365730,-500.0,0.00041753,30]
[310913738,1704814365740,-1028.56,0.00041753,30]
[310913739,1704814365750,-818.97,0.00041753,30]
[310913740,1704814365760,-3938.01,0.00041753,30]
[310913741,1704814365770,-500.0,0.00041753,30]
[310913742,1704814365779,-936.13,0.00041753,30]
[310913743,1704814365788,-5593.35,0.00041753,30]
[310913744,1704814365798,-500.0,0.00041753,30]
[310913745,1704814365807,-510.37681384,0.00041753,30]
[310913746,1704814365817,-1000.0,0.00041753,30]
[310913747,1704814365830,-500.0,0.00041753,30]
[310913748,1704814365839,-852.7,0.00041753,30]
[310913749,1704814365848,-756.79,0.00041753,30]
[310913750,1704814365859,-500.0,0.00041753,30]
[310913751,1704814365868,-500.0,0.00041753,30]
[310913752,1704814365878,-3257.97,0.0004178,120]
[310913753,1704814365888,-2809.0,0.0004179,3]
[310913754,1704814365897,-1000.0,0.000418,30]
[310913755,1704814365907,-1000.0,0.000418,20]
[310913756,1704814365916,-593.21,0.000418,4]
[310913757,1704814365926,-593.21,0.000418,4]
[310913758,1704814365935,-593.21,0.000418,4]
[310913759,1704814365943,-593.21,0.000418,4]
[310913760,1704814365953,-593.21,0.000418,4]
[310913761,1704814365962,-593.21,0.000418,4]
[310913762,1704814365972,-593.21,0.000418,4]
[310913763,1704814365981,-593.21,0.000418,4]
[310913764,1704814365991,-593.21,0.000418,4]
[310913765,1704814366000,-593.21,0.000418,4]
[310913766,1704814366010,-593.21,0.000418,4]
[310913767,1704814366019,-593.21,0.000418,4]
[310913768,1704814366028,-593.21,0.000418,4]
[310913769,1704814366038,-593.21,0.000418,4]
[310913770,1704814366047,-593.21,0.000418,4]
[310913771,1704814366056,-593.21,0.000418,4]
[310913772,1704814366065,-593.21,0.000418,4]
[310913773,1704814366074,-593.21,0.000418,4]
[310913774,1704814366083,-593.21,0.000418,4]
[310913775,1704814366092,-593.21,0.000418,4]
[310913776,1704814366101,-1349.16,0.00041835,30]
[310913777,1704814366112,-500.0,0.00041835,30]
[310913778,1704814366121,-1655.21,0.00041835,30]
[310913779,1704814366130,-717.53,0.00041835,30]
[310913780,1704814366139,-684.27,0.00041835,30]
[310913781,1704814366149,-500.0,0.00041835,30]
[310913782,1704814366158,-502.91306027,0.00041835,30]
[310913783,1704814366168,-878.82,0.00041835,30]
[310913784,1704814366177,-417.90408826,0.00041835,30]
[310913785,1704814366186,-500.0,0.00041835,30]
[310913786,1704814366196,-1062.3,0.00041835,30]
[310913787,1704814366205,-505.38,0.00041835,30]
[310913788,1704814366215,-500.0,0.00041835,30]
[310913789,1704814366224,-500.0,0.00041835,30]
[310913790,1704814366234,-701.66,0.00041835,30]
[310913791,1704814366243,-1067.49,0.00041835,30]
[310913792,1704814366252,-500.0,0.00041835,30]
[310913793,1704814366262,-500.0,0.00041835,30]
[310913794,1704814366272,-565.87,0.00041835,30]
[310913795,1704814366281,-500.0,0.00041835,30]
[310913796,1704814366290,-500.0,0.00041835,30]
[310913797,1704814366300,-500.0,0.00041835,30]
[310913798,1704814366309,-707.34,0.00041835,30]
[310913799,1704814366319,-676.09,0.00041835,30]
[310913800,1704814366329,-406.87946645,0.00041835,30]
[310913801,1704814366339,-581.02,0.00041835,30]
[310913802,1704814366348,-1072.03,0.00041835,30]
[310913803,1704814366359,-712.95,0.00041835,30]
[310913804,1704814366368,-500.0,0.00041835,30]
[310913805,1704814366379,-2060.33,0.00041835,30]
[310913806,1704814366389,-500.0,0.00041835,30]
[310913807,1704814366398,-500.0,0.00041835,30]
[310913808,1704814366407,-569.49,0.00041835,30]
[310913809,1704814366417,-500.0,0.00041835,30]
[310913810,1704814366427,-500.0,0.00041835,30]
[310913811,1704814366438,-500.0,0.00041835,30]
[310913812,1704814366448,-611.31,0.00041835,30]
[310913813,1704814366458,-500.0,0.00041835,30]
[310913814,1704814366467,-500.0,0.00041835,30]
[310913815,1704814366477,-500.0,0.00041835,30]
[310913816,1704814366487,-500.0,0.00041835,30]
[310913817,1704814366497,-500.0,0.00041835,30]
[310913818,1704814366508,-500.0,0.00041835,30]
[310913819,1704814366517,-569.87,0.00041835,2]
[310913820,1704814366527,-500.0,0.00041835,30]
[310913821,1704814366537,-500.0,0.00041835,30]
[310913822,1704814366547,-1090.72,0.00041835,30]
[310913823,1704814366556,-808.52,0.00041835,30]
[310913824,1704814366565,-500.0,0.00041835,30]
[310913825,1704814366575,-500.0,0.00041835,30]
[310913826,1704814366585,-500.0,0.00041835,30]
[310913827,1704814366595,-500.0,0.00041835,30]
[310913828,1704814366605,-1089.41,0.00041835,30]
[310913829,1704814366615,-675.87,0.00041835,30]
[310913830,1704814366625,-978.4,0.00041835,30]
[310913831,1704814366635,-516.16828577,0.00041835,30]
[310913832,1704814366645,-500.0,0.00041835,30]
[310913833,1704814366655,-500.0,0.00041835,30]
[310913834,1704814366664,-500.0,0.00041835,30]
[310913835,1704814366674,-943.45,0.00041835,30]
[310913836,1704814366684,-500.0,0.00041835,30]
[310913837,1704814366693,-1046.91,0.00041835,30]
[310913838,1704814366702,-500.0,0.00041835,30]
[310913839,1704814366712,-500.0,0.00041835,30]
[310913840,1704814366723,-500.0,0.00041835,30]
[310913841,1704814366733,-989.32,0.00041835,30]
[310913842,1704814366742,-523.36,0.00041835,30]
[310913843,1704814366751,-735.81,0.00041835,30]
[310913844,1704814366760,-500.0,0.00041835,30]
[310913845,1704814366770,-500.0,0.00041835,30]
[310913846,1704814366780,-805.93,0.00041835,30]
[310913847,1704814366790,-500.0,0.00041835,7]
[310913848,1704814366799,-500.0,0.00041835,30]
[310913849,1704814366808,-590.23844045,0.00041835,30]
[310913850,1704814366821,-1029.87,0.00041835,30]
[310913851,1704814366830,-299.6108974,0.00041835,30]
[310913852,1704814366839,-500.0,0.00041835,30]
[310913853,1704814366849,-500.0,0.00041835,30]
[310913854,1704814366858,-500.0,0.00041835,30]
[310913855,1704814366869,-858.42,0.00041835,30]
[310913856,1704814366879,-985.14,0.00041835,30]
[310913857,1704814366888,-250.0,0.00041835,30]
[310913858,1704814366898,-887.41,0.00041835,30]
[310913859,1704814366907,-586.06,0.00041835,30]
[310913860,1704814366917,-500.0,0.00041835,30]
[310913861,1704814366926,-500.0,0.00041835,30]
[310913862,1704814366936,-542.26,0.00041835,30]
[310913863,1704814366945,-924.59,0.00041835,30]
[310913864,1704814366955,-500.0,0.00041835,30]
[310913865,1704814366964,-500.0,0.00041835,30]
[310913866,1704814366973,-1031.16,0.00041835,30]
[310913867,1704814366983,-500.0,0.00041835,30]
[310913868,1704814366992,-639.05,0.00041835,30]
[310913869,1704814367002,-651.17,0.00041835,6]
[310913870,1704814367011,-640.53914138,0.00041835,30]
[310913871,1704814367021,-630.96,0.00041835,30]
[310913872,1704814367030,-808.61,0.00041835,30]
[310913873,1704814367041,-772.64,0.00041835,30]
[310913874,1704814367051,-500.0,0.00041835,30]
[310913875,1704814367060,-768.03,0.00041835,30]
[310913876,1704814367069,-1151.39,0.00041835,30]
[310913877,1704814367078,-500.0,0.00041835,30]
[310913878,1704814367088,-500.0,0.00041835,30]
[310913879,1704814367098,-500.0,0.00041835,30]
[310913880,1704814367107,-500.0,0.00041835,30]
[310913881,1704814367118,-550.10844557,0.00041835,30]
[310913882,1704814367127,-594.48,0.00041835,30]
[310913883,1704814367137,-1345.27,0.00041835,30]
[310913884,1704814367260,-504.9,0.00041835,30]
[310913885,1704814367270,-530.22,0.00041835,30]
[310913886,1704814367279,-500.0,0.00041835,30]
[310913887,1704814367289,-262.52889514,0.00041835,30]
[310913888,1704814367298,-898.15,0.00041835,30]
[310913889,1704814367307,-1000.0,0.00041835,2]
[310913890,1704814367316,-827.59,0.00041835,30]
[310913891,1704814367325,-1088.78,0.00041835,30]
[310913892,1704814367335,-500.0,0.00041835,30]
[310913893,1704814367344,-1220.08,0.00041835,30]
[310913894,1704814367354,-965.85,0.00041835,30]
[310913895,1704814367364,-1200.92,0.00041835,30]
[310913896,1704814367373,-677.14,0.00041835,30]
[310913897,1704814367382,-500.0,0.00041835,30]
[310913898,1704814367392,-500.0,0.00041835,30]
[310913899,1704814367401,-615.95,0.00041835,30]
[310913900,1704814367410,-500.0,0.00041835,30]
[310913901,1704814367420,-906.91,0.00041835,30]
[310913902,1704814367430,-500.0,0.00041835,30]
[310913903,1704814367439,-500.0,0.00041835,30]
[310913904,1704814367449,-500.0,0.00041835,30]
[310913905,1704814367458,-1003.46,0.00041835,30]
[310913906,1704814367467,-500.0,0.00041835,30]
[310913907,1704814367476,-805.99,0.00041835,30]
[310913908,1704814367485,-611.7749849,0.00041835,30]
[310913909,1704814367494,-520.60181826,0.00041835,30]
[310913910,1704814367503,-500.0,0.00041835,30]
[310913911,1704814367512,-500.0,0.00041835,30]
[310913912,1704814367521,-920.79,0.00041835,30]
[310913913,1704814367530,-983.43,0.00041835,30]
[310913914,1704814367543,-628.8,0.00041835,30]
[310913915,1704814367552,-500.0,0.00041835,30]
[310913916,1704814367561,-500.0,0.00041835,30]
[310913917,1704814367572,-500.0,0.00041835,30]
[310913918,1704814367582,-544.66,0.00041835,30]
[310913919,1704814367592,-500.0,0.00041835,30]
[310913920,1704814367602,-500.0,0.00041835,30]
[310913921,1704814367611,-1232.09,0.00041835,30]
[310913922,1704814367620,-500.0,0.00041835,30]
[310913923,1704814367630,-832.26,0.00041835,30]
[310913924,1704814367639,-500.0,0.00041835,7]
[310913925,1704814367648,-941.95,0.00041835,30]
[310913926,1704814367658,-500.0,0.00041835,30]
[310913927,1704814367667,-500.0,0.00041835,30]
[310913928,1704814367677,-809.62,0.00041835,30]
[310913929,1704814367688,-500.0,0.00041835,30]
[310913930,1704814367697,-1379.83,0.00041835,30]
[310913931,1704814367706,-500.0,0.00041835,30]